{"text_format":"1","workbook":"xlsx","n_sheets":4,"sheets":["請求書入力 ","請求書印刷","請求書入力 (記入例)","請求書印刷 (記入例)"],"not_rendered":{"charts":0,"images":0,"macros":1,"external_links":1,"defined_names":5,"comments":2,"pivot_tables":0},"unopened":[],"bounds":{"document_bytes":16777216,"sheet_cells":100000,"rows_first":2000,"rows_last":500,"rows_between":2000,"halvings":0,"cell_chars":16384,"cell_head_chars":4096},"cells_cut":0,"cells_raw":0,"read":"whole","date_system":"1900"}

{"sheet":"請求書入力 ","index":0,"n_rows":29,"n_cols":79,"rows_kept":29,"cut":false,"hidden":false,"merged":[[0,0,2,7],[0,8,2,14],[0,16,2,21],[0,22,2,28],[0,29,2,32],[4,27,6,33],[0,62,2,62],[0,63,2,65],[1,66,1,75],[3,9,3,56],[3,61,4,61],[3,62,3,68],[4,63,4,65],[4,66,4,68],[4,69,4,73],[0,33,2,58],[4,0,6,7],[4,8,6,12],[4,13,6,14],[4,15,6,21],[4,22,6,26],[8,72,8,73],[5,40,10,57],[5,63,5,65],[5,66,5,68],[5,69,5,73],[6,63,6,65],[6,66,6,68],[6,69,6,73],[9,63,9,65],[9,66,9,68],[9,69,9,71],[9,72,9,73],[7,72,7,73],[10,0,11,7],[10,8,11,33],[10,65,10,74],[11,62,11,64],[11,65,11,69],[11,71,11,73],[11,74,11,76],[7,0,9,7],[7,8,9,33],[7,63,7,65],[7,66,7,68],[7,69,7,71],[8,63,8,65],[8,66,8,68],[8,69,8,71],[12,0,12,7],[12,8,12,33],[12,62,12,69],[12,71,12,73],[12,74,12,76],[14,74,14,76],[15,0,16,7],[15,8,16,33],[15,71,15,73],[15,74,15,76],[16,71,16,76],[13,0,14,7],[13,8,14,33],[13,71,13,73],[13,74,13,76],[14,71,14,73],[21,0,23,7],[21,8,23,10],[21,24,23,25],[18,0,20,7],[18,8,20,9],[18,10,20,11],[18,12,20,13],[18,14,20,15],[21,11,23,13],[21,14,23,15],[21,16,23,18],[21,19,23,20],[21,21,23,23],[28,39,29,43],[28,44,29,58],[18,16,20,17],[18,39,19,58],[20,39,21,43],[20,44,21,58],[22,39,23,43],[22,44,23,58],[24,39,25,43],[24,44,25,58],[26,39,27,43],[26,44,27,58]]}
["取引先ｺｰﾄﾞ",null,null,null,null,null,null,null,null,null,null,null,null,null,null,null,"工事番号",null,null,null,null,null,null,null,null,null,null,null,null,"工事名",null,null,null,null,null,null,null,null,null,null,null,null,null,null,null,null,null,null,null,null,null,null,null,null,null,null,null,null,null,null,null,null,"大区分"]
[null,null,null,null,null,null,null,null,null,null,null,null,null,null,null,null,null,null,null,null,null,null,null,null,null,null,null,null,null,null,null,null,null,null,null,null,null,null,null,null,null,null,null,null,null,null,null,null,null,null,null,null,null,null,null,null,null,null,null,null,null,null,null,null,null,null,"土木（１）・建築（２）・設計（３）"]
[null,null,null,null,null,null,null,null,null,null,null,null,null,null,null,null,null,null,null,null,null,null,null,null,null,null,null,null,null,null,null,null,null,null,null,null,null,null,null,null,null,null,null,null,null,null,null,null,null,null,null,null,null,null,null,null,null,null,null,null,null,null,null,null,null,null,null,null,"のうちから選んで記入してください"]
[null,null,null,null,null,null,null,null,null,"取引先コード、工事番号、工事名は担当者に確認後記入してください",null,null,null,null,null,null,null,null,null,null,null,null,null,null,null,null,null,null,null,null,null,null,null,null,null,null,null,null,null,null,null,null,null,null,null,null,null,null,null,null,null,null,null,null,null,null,null,null,null,null,null,"番号","所属先/班名",null,null,null,null,null,null,null,null,null,null,null,"請求項目"]
["〒",null,null,null,null,null,null,null,null,null,null,null,null,"－",null,null,null,null,null,null,null,null,"担当者",null,null,null,null,null,null,null,null,null,null,null,null,null,null,null,null,null,null,null,null,null,null,null,null,null,null,null,null,null,null,null,null,null,null,null,null,null,null,null,"日付","中区分",null,null,"担当者名",null,null,"内容",null,null,null,null,"数量","単位","単価","金額合計","非課税"]
[null,null,null,null,null,null,null,null,null,null,null,null,null,null,null,null,null,null,null,null,null,null,null,null,null,null,null,null,null,null,null,null,null,null,null,null,null,null,null,null,"赤枠で囲んだ部分をすべて記入して下さい",null,null,null,null,null,null,null,null,null,null,null,null,null,null,null,null,null,null,null,null,1]
[null,null,null,null,null,null,null,null,null,null,null,null,null,null,null,null,null,null,null,null,null,null,null,null,null,null,null,null,null,null,null,null,null,null,null,null,null,null,null,null,null,null,null,null,null,null,null,null,null,null,null,null,null,null,null,null,null,null,null,null,null,2,null,null,null,null,null,null,null,null,null,null,null,null,null,null,null,{"$f":"+BW7*BY7","v":0}]
["住　所",null,null,null,null,null,null,null,null,null,null,null,null,null,null,null,null,null,null,null,null,null,null,null,null,null,null,null,null,null,null,null,null,null,null,null,null,null,null,null,null,null,null,null,null,null,null,null,null,null,null,null,null,null,null,null,null,null,null,null,null,3,null,null,null,null,null,null,null,null,null,null,null,null,null,null,null,0,0]
[null,null,null,null,null,null,null,null,null,null,null,null,null,null,null,null,null,null,null,null,null,null,null,null,null,null,null,null,null,null,null,null,null,null,null,null,null,null,null,null,null,null,null,null,null,null,null,null,null,null,null,null,null,null,null,null,null,null,null,null,null,4,null,null,null,null,null,null,null,null,null,null,null,null,null,null,null,0,0]
[null,null,null,null,null,null,null,null,null,null,null,null,null,null,null,null,null,null,null,null,null,null,null,null,null,null,null,null,null,null,null,null,null,null,null,null,null,null,null,null,null,null,null,null,null,null,null,null,null,null,null,null,null,null,null,null,null,null,null,null,null,5,null,null,null,null,null,null,null,null,null,null,null,null,null,null,null,0,0]
["会社名",null,null,null,null,null,null,null,null,null,null,null,null,null,null,null,null,null,null,null,null,null,null,null,null,null,null,null,null,null,null,null,null,null,null,null,null,null,null,null,null,null,null,null,null,null,null,null,null,null,null,null,null,null,null,null,null,null,null,null,null,null,null,null,null,"中区分は担当者に確認後記入してください"]
[null,null,null,null,null,null,null,null,null,null,null,null,null,null,null,null,null,null,null,null,null,null,null,null,null,null,null,null,null,null,null,null,null,null,null,null,null,null,null,null,null,null,null,null,null,null,null,null,null,null,null,null,null,null,null,null,null,null,null,null,null,null,"注文書番号",null,null,null,null,null,null,null,null,"契約金額"]
["代表者名",null,null,null,null,null,null,null,null,null,null,null,null,null,null,null,null,null,null,null,null,null,null,null,null,null,null,null,null,null,null,null,null,null,null,null,null,null,null,null,null,null,null,null,null,null,null,null,null,null,null,null,null,null,null,null,null,null,null,null,null,null,"注文書発行している場合は記入してください",null,null,null,null,null,null,null,null,"出来高（納入高）"]
["ＴＥＬ",null,null,null,null,null,null,null,null,null,null,null,null,null,null,null,null,null,null,null,null,null,null,null,null,null,null,null,null,null,null,null,null,null,null,null,null,null,null,null,null,null,null,null,null,null,null,null,null,null,null,null,null,null,null,null,null,null,null,null,null,null,null,null,null,null,null,null,null,null,null,"既請求分"]
[null,null,null,null,null,null,null,null,null,null,null,null,null,null,null,null,null,null,null,null,null,null,null,null,null,null,null,null,null,null,null,null,null,null,null,null,null,null,null,null,null,null,null,null,null,null,null,null,null,null,null,null,null,null,null,null,null,null,null,null,null,null,null,null,null,null,null,null,null,null,null,"今回請求分"]
["F　　A　　　X",null,null,null,null,null,null,null,null,null,null,null,null,null,null,null,null,null,null,null,null,null,null,null,null,null,null,null,null,null,null,null,null,null,null,null,null,null,null,null,null,null,null,null,null,null,null,null,null,null,null,null,null,null,null,null,null,null,null,null,null,null,null,null,null,null,null,null,null,null,null,"残　　額"]
[null,null,null,null,null,null,null,null,null,null,null,null,null,null,null,null,null,null,null,null,null,null,null,null,null,null,null,null,null,null,null,null,null,null,null,null,null,null,null,null,null,null,null,null,null,null,null,null,null,null,null,null,null,null,null,null,null,null,null,null,null,null,null,null,null,null,null,null,null,null,null,"契約金額の取り決めがない場合は未記入で提出してください"]
[]
["請　求　月",null,null,null,null,null,null,null,"平成",null,null,null,"年",null,null,null,"月",null,null,null,null,null,null,null,null,null,null,null,null,null,null,null,null,null,null,null,null,null,null,"振込先"]
[]
[null,null,null,null,null,null,null,null,null,null,null,null,null,null,null,null,null,null,null,null,null,null,null,null,null,null,null,null,null,null,null,null,null,null,null,null,null,null,null,"銀行名"]
["請求年月日",null,null,null,null,null,null,null,"平成",null,null,null,null,null,"年",null,null,null,null,"月",null,null,null,null,"日"]
[null,null,null,null,null,null,null,null,null,null,null,null,null,null,null,null,null,null,null,null,null,null,null,null,null,null,null,null,null,null,null,null,null,null,null,null,null,null,null,"支店名"]
[]
[null,null,null,null,null,null,null,null,null,null,null,null,null,null,null,null,null,null,null,null,null,null,null,null,null,null,null,null,null,null,null,null,null,null,null,null,null,null,null,"預金種別"]
[]
[null,null,null,null,null,null,null,null,null,null,null,null,null,null,null,null,null,null,null,null,null,null,null,null,null,null,null,null,null,null,null,null,null,null,null,null,null,null,null,"口座番号"]
[]
[null,null,null,null,null,null,null,null,null,null,null,null,null,null,null,null,null,null,null,null,null,null,null,null,null,null,null,null,null,null,null,null,null,null,null,null,null,null,null,"口座名義"]

{"sheet":"請求書印刷","index":1,"n_rows":66,"n_cols":20,"rows_kept":66,"cut":false,"hidden":false,"merged":[[12,17,12,18],[12,15,12,16],[11,15,11,16],[43,15,43,16],[44,15,44,16],[44,17,44,18],[29,16,30,16],[29,17,30,17],[57,13,57,14],[57,15,57,17],[41,15,41,18],[39,13,40,14],[41,13,41,14],[56,1,56,4],[57,1,57,4],[52,13,52,15],[52,16,52,17],[54,1,54,3],[54,5,54,12],[54,13,54,15],[54,16,54,17],[50,13,50,15],[50,16,50,17],[51,1,51,3],[51,5,51,12],[51,13,51,15],[51,16,51,17],[53,1,53,3],[53,5,53,12],[53,13,53,15],[53,16,53,17],[42,2,43,10],[42,13,42,14],[43,13,44,14],[37,13,37,14],[38,13,38,14],[36,13,36,14],[25,13,25,17],[28,4,28,8],[29,4,29,8],[30,4,30,8],[31,4,31,8],[32,4,32,8],[39,0,39,2],[40,0,40,2],[36,10,36,11],[33,0,33,13],[37,15,37,17],[38,15,38,18],[39,15,39,18],[40,15,40,18],[36,2,36,8],[14,1,14,3],[14,4,14,10],[19,5,19,7],[19,2,19,4],[16,1,16,2],[16,3,16,12],[18,1,18,7],[19,8,19,12],[1,0,1,13],[4,2,4,8],[4,12,12,12],[4,13,4,14],[7,0,7,2],[4,10,4,11],[9,13,9,14],[10,0,11,1],[10,2,11,10],[10,13,10,14],[7,13,8,14],[8,0,8,2],[11,13,12,14],[5,13,5,14],[6,13,6,14],[15,4,15,12],[65,3,65,5],[65,6,65,8],[46,1,46,3],[50,1,50,3],[50,5,50,12],[42,0,43,1],[66,1,69,2],[66,3,69,5],[66,6,69,8],[46,4,46,10],[52,1,52,3],[52,5,52,12],[47,1,47,3],[47,4,47,12],[48,1,48,2],[48,3,48,12],[55,1,55,17],[56,5,56,12],[56,13,56,14],[56,15,56,17],[57,5,57,12],[36,12,44,12],[36,15,36,18],[42,15,42,18],[65,1,65,2],[4,15,4,18],[5,15,5,17],[6,15,6,18],[7,15,7,18],[8,15,8,18],[9,15,9,18],[10,15,10,18],[25,0,25,12],[27,4,27,8],[20,8,20,12],[21,8,21,12],[22,8,22,12],[23,8,23,12],[24,8,24,12],[28,1,28,3],[21,5,21,7],[22,5,22,7],[23,5,23,7],[20,2,20,4],[20,5,20,7],[21,2,21,4],[22,2,22,4],[23,2,23,4],[18,0,19,0],[29,15,30,15],[15,1,15,3],[24,2,24,4],[24,5,24,7],[29,1,29,3],[30,1,30,3],[31,1,31,3],[32,1,32,3],[27,1,27,3]]}
[]
["請求書　（正）"]
[]
[]
["請求先",null,"㈱占部組",null,null,null,null,null,null,null,"御中",null,"請求元","社名",null,{"$f":"+'請求書入力 '!$I$11","v":0}]
[null,null,null,null,null,null,null,null,null,null,null,null,null,"業者番号",null,{"$f":"+'請求書入力 '!$I$1","v":0},null,null,"印"]
[null,null,null,null,null,null,null,null,null,null,null,null,null,"代表者名",null,{"$f":"+'請求書入力 '!$I$13","v":0}]
["請求日",null,null,"平成",{"$f":"+'請求書入力 '!$L$22","v":0},"年",{"$f":"+'請求書入力 '!$Q$22","v":0},"月",{"$f":"+'請求書入力 '!$V$22","v":0},"日",null,null,null,"住所",null,{"$f":"+\"〒　\"&'請求書入力 '!$I$5&+'請求書入力 '!$P$5","v":"〒　"}]
["請求締日",null,null,null,{"$f":"+'請求書入力 '!$I$19","v":"平成"},{"$f":"+'請求書入力 '!$K$19","v":0},null,{"$f":"+'請求書入力 '!$M$19","v":"年"},{"$f":"+'請求書入力 '!$O$19","v":0},"月末締",null,null,null,null,null,{"$f":"+'請求書入力 '!$I$8","v":0}]
[null,null,null,null,null,null,null,null,null,null,null,null,null,"電話",null,{"$f":"+'請求書入力 '!$I$14","v":0}]
["御請求金額",null,{"$f":"+$S$26","v":0},null,null,null,null,null,null,null,null,null,null,"ＦＡＸ",null,{"$f":"+'請求書入力 '!$I$16","v":0}]
[null,null,null,null,null,null,null,null,null,null,null,null,null,"振込先",null,{"$f":"+'請求書入力 '!$AS$21","v":0},null,{"$f":"+'請求書入力 '!$AS$23","v":0},{"$f":"+'請求書入力 '!$AS$25","v":0}]
[null,null,null,null,null,null,null,null,null,null,null,null,null,null,null,{"$f":"+'請求書入力 '!$AS$27","v":0},null,{"$f":"+'請求書入力 '!$AS$29","v":0}]
[]
[null,"工事番号",null,null,{"$f":"+'請求書入力 '!$W$1","v":0},null,null,null,null,null,null,null,null,null,null,"担当者",{"$f":"+'請求書入力 '!$AB$5","v":0}]
[null,"工事名",null,null,{"$f":"+'請求書入力 '!$AH$1","v":0}]
[null,"大区分",null,{"$f":"+'請求書入力 '!$BL$1","v":0}]
[]
["番号","所属先/班名",null,null,null,null,null,null,null,null,null,null,null,"請求項目"]
[null,"日付","中区分",null,null,"担当者名",null,null,"内容",null,null,null,null,"数量","単位","単価","金額","消費税額","金額合計"]
[1,{"$f":"+'請求書入力 '!$BK$6","v":"00:00:00"},{"$f":"+'請求書入力 '!$BL$6","v":0},null,null,{"$f":"+'請求書入力 '!$BO$6","v":"00:00:00"},null,null,{"$f":"+'請求書入力 '!$BR$6","v":0},null,null,null,null,{"$f":"+'請求書入力 '!$BW$6","v":0},{"$f":"+'請求書入力 '!$BX$6","v":0},{"$f":"+'請求書入力 '!$BY$6","v":0},{"$f":"+'請求書入力 '!$BZ$6","v":0},{"$f":"IF(T21=\"非\",\"0\",+Q21*0.1)","v":0},{"$f":"+Q21+R21","v":0},{"$f":"+'請求書入力 '!$CA$6","v":0}]
[2,{"$f":"+'請求書入力 '!$BK$7","v":"00:00:00"},{"$f":"+'請求書入力 '!$BL$7","v":0},null,null,{"$f":"+'請求書入力 '!$BO$7","v":"00:00:00"},null,null,{"$f":"+'請求書入力 '!$BR$7","v":0},null,null,null,null,{"$f":"+'請求書入力 '!$BW$7","v":0},{"$f":"+'請求書入力 '!$BX$7","v":0},{"$f":"+'請求書入力 '!$BY$7","v":0},{"$f":"+'請求書入力 '!$BZ$7","v":0},{"$f":"IF(T22=\"非\",\"0\",+Q22*0.1)","v":0},{"$f":"+Q22+R22","v":0},{"$f":"+'請求書入力 '!$CA$7","v":0}]
[3,{"$f":"+'請求書入力 '!$BK$8","v":"00:00:00"},{"$f":"+'請求書入力 '!$BL$8","v":0},null,null,{"$f":"+'請求書入力 '!$BO$8","v":"00:00:00"},null,null,{"$f":"+'請求書入力 '!$BR$8","v":0},null,null,null,null,{"$f":"+'請求書入力 '!$BW$8","v":0},{"$f":"+'請求書入力 '!$BX$8","v":0},{"$f":"+'請求書入力 '!$BY$8","v":0},{"$f":"+'請求書入力 '!$BZ$8","v":0},{"$f":"IF(T23=\"非\",\"0\",+Q23*0.1)","v":0},0,{"$f":"+'請求書入力 '!$CA$8","v":0}]
[4,{"$f":"+'請求書入力 '!$BK$9","v":"00:00:00"},{"$f":"+'請求書入力 '!$BL$9","v":0},null,null,{"$f":"+'請求書入力 '!$BO$9","v":"00:00:00"},null,null,{"$f":"+'請求書入力 '!$BR$9","v":0},null,null,null,null,{"$f":"+'請求書入力 '!$BW$9","v":0},{"$f":"+'請求書入力 '!$BX$9","v":0},{"$f":"+'請求書入力 '!$BY$9","v":0},{"$f":"+'請求書入力 '!$BZ$9","v":0},{"$f":"IF(T24=\"非\",\"0\",+Q24*0.1)","v":0},0,{"$f":"+'請求書入力 '!$CA$9","v":0}]
[5,{"$f":"+'請求書入力 '!$BK$10","v":"00:00:00"},{"$f":"+'請求書入力 '!$BL$10","v":0},null,null,{"$f":"+'請求書入力 '!$BO$10","v":"00:00:00"},null,null,{"$f":"+'請求書入力 '!$BR$10","v":0},null,null,null,null,{"$f":"+'請求書入力 '!$BW$10","v":0},{"$f":"+'請求書入力 '!$BX$10","v":0},{"$f":"+'請求書入力 '!$BY$10","v":0},{"$f":"+'請求書入力 '!$BZ$10","v":0},{"$f":"IF(T25=\"非\",\"0\",+Q25*0.1)","v":0},0,{"$f":"+'請求書入力 '!$CA$10","v":0}]
[null,null,null,null,null,null,null,null,null,null,null,null,null,"合計金額",null,null,null,null,{"$f":"SUM(S21:S25)","v":0}]
[]
[null,"注文書番号",null,null,{"$f":"+'請求書入力 '!$BN$12","v":0}]
[null,"契約金額",null,null,{"$f":"+'請求書入力 '!$BW$12","v":0},null,null,null,null,null,null,null,null,null,null,"社長承認","現場担当者","経理担当者"]
[null,"出来高（納入高）",null,null,{"$f":"+'請求書入力 '!$BW$13","v":0}]
[null,"既請求分",null,null,{"$f":"+'請求書入力 '!$BW$14","v":0}]
[null,"今回請求分",null,null,{"$f":"+'請求書入力 '!$BW$15","v":0}]
[null,"残　　額",null,null,{"$f":"+'請求書入力 '!$BW$16","v":0}]
["請求書　（支払伝票）"]
[]
[]
["請求先",null,"㈱占部組",null,null,null,null,null,null,null,"御中",null,"請求元","社名",null,{"$f":"+'請求書入力 '!$I$11","v":0}]
[null,null,null,null,null,null,null,null,null,null,null,null,null,"業者番号",null,{"$f":"+'請求書入力 '!$I$1","v":0},null,null,"印"]
[null,null,null,null,null,null,null,null,null,null,null,null,null,"代表者名",null,{"$f":"+'請求書入力 '!$I$13","v":0}]
["請求日",null,null,"平成",{"$f":"+'請求書入力 '!$L$22","v":0},"年",{"$f":"+'請求書入力 '!$Q$22","v":0},"月",{"$f":"+'請求書入力 '!$V$22","v":0},"日",null,null,null,"住所",null,{"$f":"+\"〒　\"&'請求書入力 '!$I$5&+'請求書入力 '!$P$5","v":"〒　"}]
["請求締日",null,null,null,{"$f":"+'請求書入力 '!$I$19","v":"平成"},{"$f":"+'請求書入力 '!$K$19","v":0},null,{"$f":"+'請求書入力 '!$M$19","v":"年"},{"$f":"+'請求書入力 '!$O$19","v":0},"月末締",null,null,null,null,null,{"$f":"+'請求書入力 '!$I$8","v":0}]
[null,null,null,null,null,null,null,null,null,null,null,null,null,"電話",null,{"$f":"+'請求書入力 '!$I$14","v":0}]
["御請求金額",null,{"$f":"+$S$26","v":0},null,null,null,null,null,null,null,null,null,null,"ＦＡＸ",null,{"$f":"+'請求書入力 '!$I$16","v":0}]
[null,null,null,null,null,null,null,null,null,null,null,null,null,"振込先",null,{"$f":"+'請求書入力 '!$AS$21","v":0},null,{"$f":"+'請求書入力 '!$AS$23","v":0},{"$f":"+'請求書入力 '!$AS$25","v":0}]
[null,null,null,null,null,null,null,null,null,null,null,null,null,null,null,{"$f":"+'請求書入力 '!$AS$27","v":0},null,{"$f":"+'請求書入力 '!$AS$29","v":0}]
[]
[null,"工事番号",null,null,{"$f":"+'請求書入力 '!$W$1","v":0},null,null,null,null,null,null,null,null,null,null,"担当者",{"$f":"+'請求書入力 '!$AB$5","v":0}]
[null,"工事名",null,null,{"$f":"+'請求書入力 '!$AH$1","v":0}]
[null,"大区分",null,{"$f":"+'請求書入力 '!$BL$1","v":0}]
[]
[null,"支払い条件",null,null,null,"支払い金額",null,null,null,null,null,null,null,"支払日",null,null,"伝票番号"]
[null,"翌末払い",null,null,null,null,null,null,null,null,null,null,null,"　　年　　　月　　　日"]
[null,"翌々10日払い",null,null,null,null,null,null,null,null,null,null,null,"　　年　　　月　　　日"]
[null,"ＯＰ締め払い",null,null,null,null,null,null,null,null,null,null,null,"　　年　　　月　　　日"]
[null,"その他払い",null,null,null,null,null,null,null,null,null,null,null,"　　年　　　月　　　日"]
[null,"立替相殺"]
[null,"業者",null,null,null,null,null,null,null,null,null,null,null,"金額"]
[null,"適用"]
[]
[]
[]
[]
[]
[]
[]
[null,"担当者印",null,"社長印",null,null,"経理課長印"]

{"sheet":"請求書入力 (記入例)","index":2,"n_rows":29,"n_cols":79,"rows_kept":29,"cut":false,"hidden":false,"merged":[[21,21,23,23],[28,39,29,43],[28,44,29,58],[22,39,23,43],[22,44,23,58],[24,39,25,43],[24,44,25,58],[26,39,27,43],[26,44,27,58],[18,39,19,58],[20,39,21,43],[20,44,21,58],[21,0,23,7],[21,8,23,10],[18,8,20,9],[21,24,23,25],[18,0,20,7],[18,10,20,11],[18,12,20,13],[18,14,20,15],[18,16,20,17],[21,11,23,13],[21,14,23,15],[21,16,23,18],[21,19,23,20],[14,74,14,76],[15,0,16,7],[15,8,16,33],[15,71,15,73],[15,74,15,76],[16,71,16,76],[13,0,14,7],[13,8,14,33],[13,71,13,73],[13,74,13,76],[14,71,14,73],[12,0,12,7],[12,8,12,33],[12,62,12,69],[12,71,12,73],[12,74,12,76],[7,0,9,7],[7,8,9,33],[7,63,7,65],[7,66,7,68],[7,69,7,71],[8,63,8,65],[8,66,8,68],[8,69,8,71],[10,0,11,7],[10,8,11,33],[10,65,10,74],[11,62,11,64],[11,65,11,69],[11,71,11,73],[11,74,11,76],[8,72,8,73],[5,40,10,57],[5,63,5,65],[5,66,5,68],[5,69,5,73],[6,63,6,65],[6,66,6,68],[6,69,6,73],[9,63,9,65],[9,66,9,68],[9,69,9,71],[9,72,9,73],[7,72,7,73],[4,0,6,7],[4,8,6,12],[4,13,6,14],[4,15,6,21],[4,22,6,26],[4,27,6,33],[0,62,2,62],[0,63,2,65],[1,66,1,75],[3,9,3,56],[3,61,4,61],[3,62,3,68],[4,63,4,65],[4,66,4,68],[4,69,4,73],[0,33,2,58],[0,0,2,7],[0,8,2,14],[0,16,2,21],[0,22,2,28],[0,29,2,32]]}
["取引先ｺｰﾄﾞ",null,null,null,null,null,null,null,8088,null,null,null,null,null,null,null,"工事番号",null,null,null,null,null,2700108,null,null,null,null,null,null,"工事名",null,null,null,"水素ステーション",null,null,null,null,null,null,null,null,null,null,null,null,null,null,null,null,null,null,null,null,null,null,null,null,null,null,null,null,"大区分","土木（1）"]
[null,null,null,null,null,null,null,null,null,null,null,null,null,null,null,null,null,null,null,null,null,null,null,null,null,null,null,null,null,null,null,null,null,null,null,null,null,null,null,null,null,null,null,null,null,null,null,null,null,null,null,null,null,null,null,null,null,null,null,null,null,null,null,null,null,null,"土木（１）・建築（２）・設計（３）"]
[null,null,null,null,null,null,null,null,null,null,null,null,null,null,null,null,null,null,null,null,null,null,null,null,null,null,null,null,null,null,null,null,null,null,null,null,null,null,null,null,null,null,null,null,null,null,null,null,null,null,null,null,null,null,null,null,null,null,null,null,null,null,null,null,null,null,null,null,"のうちから選んで記入してください"]
[null,null,null,null,null,null,null,null,null,"取引先コード、工事番号、工事名は現場担当者又は本社堂本に確認後記入してください",null,null,null,null,null,null,null,null,null,null,null,null,null,null,null,null,null,null,null,null,null,null,null,null,null,null,null,null,null,null,null,null,null,null,null,null,null,null,null,null,null,null,null,null,null,null,null,null,null,null,null,"番号","所属先/班名",null,null,null,null,null,null,null,null,null,null,null,"請求項目"]
["〒",null,null,null,null,null,null,null,"110",null,null,null,null,"－",null,"5959",null,null,null,null,null,null,"担当者",null,null,null,null,"山本",null,null,null,null,null,null,null,null,null,null,null,null,null,null,null,null,null,null,null,null,null,null,null,null,null,null,null,null,null,null,null,null,null,null,"日付","中区分",null,null,"担当者名",null,null,"内容",null,null,null,null,"数量","単位","単価","金額合計","非課税"]
[null,null,null,null,null,null,null,null,null,null,null,null,null,null,null,null,null,null,null,null,null,null,null,null,null,null,null,null,null,null,null,null,null,null,null,null,null,null,null,null,"赤枠で囲んだ部分をすべて記入して下さい",null,null,null,null,null,null,null,null,null,null,null,null,null,null,null,null,null,null,null,null,1,"2016-02-28","土木",null,null,"大神",null,null,"基礎工事部材",null,null,null,null,1,"式",50000,{"$f":"+BW6*BY6","v":50000}]
[null,null,null,null,null,null,null,null,null,null,null,null,null,null,null,null,null,null,null,null,null,null,null,null,null,null,null,null,null,null,null,null,null,null,null,null,null,null,null,null,null,null,null,null,null,null,null,null,null,null,null,null,null,null,null,null,null,null,null,null,null,2,"2016-02-28","土木",null,null,null,null,null,"バイパス代立替",null,null,null,null,1,"式",3000,{"$f":"+BW7*BY7","v":3000},"非"]
["住　所",null,null,null,null,null,null,null,"大阪市北区淀川町1-12",null,null,null,null,null,null,null,null,null,null,null,null,null,null,null,null,null,null,null,null,null,null,null,null,null,null,null,null,null,null,null,null,null,null,null,null,null,null,null,null,null,null,null,null,null,null,null,null,null,null,null,null,3,null,null,null,null,null,null,null,null,null,null,null,null,null,null,null,0,0]
[null,null,null,null,null,null,null,null,null,null,null,null,null,null,null,null,null,null,null,null,null,null,null,null,null,null,null,null,null,null,null,null,null,null,null,null,null,null,null,null,null,null,null,null,null,null,null,null,null,null,null,null,null,null,null,null,null,null,null,null,null,4,null,null,null,null,null,null,null,null,null,null,null,null,null,null,null,0,0]
[null,null,null,null,null,null,null,null,null,null,null,null,null,null,null,null,null,null,null,null,null,null,null,null,null,null,null,null,null,null,null,null,null,null,null,null,null,null,null,null,null,null,null,null,null,null,null,null,null,null,null,null,null,null,null,null,null,null,null,null,null,5,null,null,null,null,null,null,null,null,null,null,null,null,null,null,null,0,0]
["会社名",null,null,null,null,null,null,null,"㈱山本建設",null,null,null,null,null,null,null,null,null,null,null,null,null,null,null,null,null,null,null,null,null,null,null,null,null,null,null,null,null,null,null,null,null,null,null,null,null,null,null,null,null,null,null,null,null,null,null,null,null,null,null,null,null,null,null,null,"中区分は担当者に確認後記入してください"]
[null,null,null,null,null,null,null,null,null,null,null,null,null,null,null,null,null,null,null,null,null,null,null,null,null,null,null,null,null,null,null,null,null,null,null,null,null,null,null,null,null,null,null,null,null,null,null,null,null,null,null,null,null,null,null,null,null,null,null,null,null,null,"注文書番号",null,null,"B27008458",null,null,null,null,null,"契約金額",null,null,1080000]
["代表者名",null,null,null,null,null,null,null,"山本カンサイ",null,null,null,null,null,null,null,null,null,null,null,null,null,null,null,null,null,null,null,null,null,null,null,null,null,null,null,null,null,null,null,null,null,null,null,null,null,null,null,null,null,null,null,null,null,null,null,null,null,null,null,null,null,"注文書発行している場合は記入してください",null,null,null,null,null,null,null,null,"出来高（納入高）",null,null,864000]
["ＴＥＬ",null,null,null,null,null,null,null,"090-9999-9999",null,null,null,null,null,null,null,null,null,null,null,null,null,null,null,null,null,null,null,null,null,null,null,null,null,null,null,null,null,null,null,null,null,null,null,null,null,null,null,null,null,null,null,null,null,null,null,null,null,null,null,null,null,null,null,null,null,null,null,null,null,null,"既請求分",null,null,648000]
[null,null,null,null,null,null,null,null,null,null,null,null,null,null,null,null,null,null,null,null,null,null,null,null,null,null,null,null,null,null,null,null,null,null,null,null,null,null,null,null,null,null,null,null,null,null,null,null,null,null,null,null,null,null,null,null,null,null,null,null,null,null,null,null,null,null,null,null,null,null,null,"今回請求分",null,null,216000]
["F　　A　　　X",null,null,null,null,null,null,null,"050-999-5555",null,null,null,null,null,null,null,null,null,null,null,null,null,null,null,null,null,null,null,null,null,null,null,null,null,null,null,null,null,null,null,null,null,null,null,null,null,null,null,null,null,null,null,null,null,null,null,null,null,null,null,null,null,null,null,null,null,null,null,null,null,null,"残　　額",null,null,{"$f":"+BW12-BW13","v":216000}]
[null,null,null,null,null,null,null,null,null,null,null,null,null,null,null,null,null,null,null,null,null,null,null,null,null,null,null,null,null,null,null,null,null,null,null,null,null,null,null,null,null,null,null,null,null,null,null,null,null,null,null,null,null,null,null,null,null,null,null,null,null,null,null,null,null,null,null,null,null,null,null,"契約金額の取り決めがない場合は未記入で提出してください"]
[]
["請　求　月",null,null,null,null,null,null,null,"平成",null,28,null,"年",null,2,null,"月",null,null,null,null,null,null,null,null,null,null,null,null,null,null,null,null,null,null,null,null,null,null,"振込先"]
[]
[null,null,null,null,null,null,null,null,null,null,null,null,null,null,null,null,null,null,null,null,null,null,null,null,null,null,null,null,null,null,null,null,null,null,null,null,null,null,null,"銀行名",null,null,null,null,"カンサイ銀行"]
["請求年月日",null,null,null,null,null,null,null,"平成",null,null,28,null,null,"年",null,2,null,null,"月",null,28,null,null,"日"]
[null,null,null,null,null,null,null,null,null,null,null,null,null,null,null,null,null,null,null,null,null,null,null,null,null,null,null,null,null,null,null,null,null,null,null,null,null,null,null,"支店名",null,null,null,null,"淀橋支店"]
[]
[null,null,null,null,null,null,null,null,null,null,null,null,null,null,null,null,null,null,null,null,null,null,null,null,null,null,null,null,null,null,null,null,null,null,null,null,null,null,null,"預金種別",null,null,null,null,"普通"]
[]
[null,null,null,null,null,null,null,null,null,null,null,null,null,null,null,null,null,null,null,null,null,null,null,null,null,null,null,null,null,null,null,null,null,null,null,null,null,null,null,"口座番号",null,null,null,null,"0010100"]
[]
[null,null,null,null,null,null,null,null,null,null,null,null,null,null,null,null,null,null,null,null,null,null,null,null,null,null,null,null,null,null,null,null,null,null,null,null,null,null,null,"口座名義",null,null,null,null,"カ.ヤマモトケンセツ"]

{"sheet":"請求書印刷 (記入例)","index":3,"n_rows":69,"n_cols":19,"rows_kept":69,"cut":false,"hidden":false,"merged":[[7,0,7,2],[7,13,8,14],[8,0,8,2],[9,13,9,14],[1,0,1,13],[4,2,4,8],[4,10,4,11],[4,12,12,12],[4,13,4,14],[5,13,5,14],[6,13,6,14],[8,4,8,5],[8,7,8,8],[18,0,19,0],[18,1,18,7],[19,2,19,4],[19,5,19,7],[19,8,19,12],[10,0,11,1],[10,2,11,10],[10,13,10,14],[11,13,12,14],[14,1,14,3],[14,4,14,10],[20,2,20,4],[20,5,20,7],[20,8,20,12],[21,2,21,4],[21,5,21,7],[21,8,21,12],[15,1,15,3],[15,4,15,12],[16,1,16,2],[16,3,16,12],[28,4,28,8],[29,1,29,3],[22,2,22,4],[22,5,22,7],[22,8,22,12],[23,2,23,4],[23,5,23,7],[23,8,23,12],[29,4,29,8],[36,0,36,13],[39,2,39,8],[39,10,39,11],[39,12,47,12],[39,13,39,14],[40,13,40,14],[41,13,41,14],[39,15,39,18],[45,0,46,1],[45,2,46,10],[45,13,45,14],[46,13,47,14],[40,15,40,17],[41,15,41,18],[42,0,42,2],[42,13,43,14],[43,0,43,2],[44,13,44,14],[42,15,42,17],[43,15,43,18],[44,15,44,18],[45,15,45,18],[56,1,56,3],[56,5,56,12],[56,13,56,15],[56,16,56,17],[49,1,49,3],[49,4,49,10],[53,13,53,15],[53,16,53,17],[54,1,54,3],[54,5,54,12],[54,13,54,15],[54,16,54,17],[50,1,50,3],[50,4,50,12],[51,1,51,2],[51,3,51,12],[53,1,53,3],[53,5,53,12],[69,1,72,2],[69,3,72,5],[69,6,72,8],[47,16,47,17],[60,1,60,4],[60,5,60,12],[60,13,60,14],[60,15,60,17],[68,1,68,2],[68,3,68,5],[68,6,68,8],[57,1,57,3],[57,5,57,12],[57,13,57,15],[57,16,57,17],[58,1,58,17],[59,1,59,4],[59,5,59,12],[59,13,59,14],[59,15,59,17],[55,1,55,3],[55,5,55,12],[55,13,55,15],[55,16,55,17],[30,4,30,8],[31,4,31,8],[32,1,32,3],[33,1,33,3],[32,4,32,8],[33,4,33,8],[30,1,30,3],[31,1,31,3],[4,15,4,18],[9,15,9,18],[10,15,10,18],[8,15,8,18],[6,15,6,18],[5,15,5,17],[7,15,7,17],[29,16,30,16],[29,17,30,17],[12,16,12,17],[29,15,30,15],[24,2,24,4],[24,5,24,7],[24,8,24,12],[25,0,25,11],[28,1,28,3]]}
[]
["請求書　（正）"]
[]
[]
["請求先",null,"㈱占部組",null,null,null,null,null,null,null,"御中",null,"請求元","社名",null,{"$f":"+'請求書入力 (記入例)'!I11","v":"㈱山本建設"}]
[null,null,null,null,null,null,null,null,null,null,null,null,null,"業者番号",null,{"$f":"+'請求書入力 (記入例)'!$I$1","v":8088},null,null,"印"]
[null,null,null,null,null,null,null,null,null,null,null,null,null,"代表者名",null,{"$f":"+'請求書入力 (記入例)'!$I$13","v":"山本カンサイ"}]
["請求日",null,null,"平成",{"$f":"+'請求書入力 (記入例)'!$L$22","v":28},"年",{"$f":"+'請求書入力 (記入例)'!$Q$22","v":2},"月",{"$f":"+'請求書入力 (記入例)'!$V$22","v":28},"日",null,null,null,"住所",null,{"$f":"+\"〒　\"&'請求書入力 (記入例)'!$I$5&\" \"&+'請求書入力 (記入例)'!$P$5","v":"〒　110 5959"}]
["請求締日",null,null,"平成",{"$f":"+'請求書入力 (記入例)'!$K$19","v":28},null,"年",{"$f":"+'請求書入力 (記入例)'!$O$19","v":2},null,"月末締",null,null,null,null,null,{"$f":"+'請求書入力 (記入例)'!I8","v":"大阪市北区淀川町1-12"}]
[null,null,null,null,null,null,null,null,null,null,null,null,null,"電話",null,{"$f":"+'請求書入力 (記入例)'!$I$14","v":"090-9999-9999"}]
["御請求金額",null,{"$f":"+$S$26","v":60000},null,null,null,null,null,null,null,null,null,null,"ＦＡＸ",null,{"$f":"+'請求書入力 (記入例)'!$I$16","v":"050-999-5555"}]
[null,null,null,null,null,null,null,null,null,null,null,null,null,"振込先",null,{"$f":"+'請求書入力 (記入例)'!$AS$21","v":"カンサイ銀行"},{"$f":"+'請求書入力 (記入例)'!$AS$23","v":"淀橋支店"},{"$f":"+'請求書入力 (記入例)'!$AS$25","v":"普通"}]
[null,null,null,null,null,null,null,null,null,null,null,null,null,null,null,{"$f":"+'請求書入力 (記入例)'!$AS$27","v":"0010100"},{"$f":"+'請求書入力 (記入例)'!$AS$29","v":"カ.ヤマモトケンセツ"}]
[]
[null,"工事番号",null,null,{"$f":"+'請求書入力 (記入例)'!$W$1","v":2700108},null,null,null,null,null,null,null,null,null,null,"担当者",{"$f":"+'請求書入力 (記入例)'!$AB$5","v":"山本"}]
[null,"工事名",null,null,{"$f":"+'請求書入力 (記入例)'!AH$1","v":"水素ステーション"}]
[null,"大区分",null,{"$f":"+'請求書入力 (記入例)'!$BL$1","v":"土木（1）"}]
[]
["番号","所属先/班名",null,null,null,null,null,null,null,null,null,null,null,"請求項目"]
[null,"日付","中区分",null,null,"担当者名",null,null,"内容",null,null,null,null,"数量","単位","単価","金額","消費税額","金額合計"]
[1,{"$f":"+'請求書入力 (記入例)'!$BK$6","v":"2016-02-28"},{"$f":"+'請求書入力 (記入例)'!$BL$6","v":"土木"},null,null,{"$f":"+'請求書入力 (記入例)'!$BO$6","v":"大神"},null,null,{"$f":"+'請求書入力 (記入例)'!$BR$6","v":"基礎工事部材"},null,null,null,null,{"$f":"+'請求書入力 (記入例)'!$BW$6","v":1},{"$f":"+'請求書入力 (記入例)'!$BX$6","v":"式"},{"$f":"+'請求書入力 (記入例)'!$BY$6","v":50000},{"$f":"+'請求書入力 (記入例)'!$BZ$6","v":50000},{"$f":"+Q21*0.08","v":4000},{"$f":"+Q21+R21","v":54000}]
[2,{"$f":"+'請求書入力 (記入例)'!$BK$7","v":"2016-02-28"},{"$f":"+'請求書入力 (記入例)'!$BL$7","v":"土木"},null,null,{"$f":"+'請求書入力 (記入例)'!$BO$7","v":"00:00:00"},null,null,{"$f":"+'請求書入力 (記入例)'!$BR$7","v":"バイパス代立替"},null,null,null,null,{"$f":"+'請求書入力 (記入例)'!$BW$7","v":1},{"$f":"+'請求書入力 (記入例)'!$BX$7","v":"式"},{"$f":"+'請求書入力 (記入例)'!$BY$7","v":3000},{"$f":"+'請求書入力 (記入例)'!$BZ$7","v":3000},{"$f":"+Q22*0.08","v":240},{"$f":"+P22+Q22","v":6000}]
[3,{"$f":"+'請求書入力 (記入例)'!$BK$8","v":"00:00:00"},{"$f":"+'請求書入力 (記入例)'!$BL$8","v":"00:00:00"},null,null,{"$f":"+'請求書入力 (記入例)'!$BO$8","v":"00:00:00"},null,null,{"$f":"+'請求書入力 (記入例)'!$BR$8","v":0},null,null,null,null,{"$f":"+'請求書入力 (記入例)'!$BW$8","v":0},{"$f":"+'請求書入力 (記入例)'!$BX$8","v":0},{"$f":"+'請求書入力 (記入例)'!$BY$8","v":0},{"$f":"+'請求書入力 (記入例)'!$BZ$8","v":0},0,0]
[4,{"$f":"+'請求書入力 (記入例)'!$BK$9","v":"00:00:00"},{"$f":"+'請求書入力 (記入例)'!$BL$9","v":"00:00:00"},null,null,{"$f":"+'請求書入力 (記入例)'!$BO$9","v":"00:00:00"},null,null,{"$f":"+'請求書入力 (記入例)'!$BR$9","v":0},null,null,null,null,{"$f":"+'請求書入力 (記入例)'!$BW$9","v":0},{"$f":"+'請求書入力 (記入例)'!$BX$9","v":0},{"$f":"+'請求書入力 (記入例)'!$BY$9","v":0},{"$f":"+'請求書入力 (記入例)'!$BZ$9","v":0},0,0]
[5,{"$f":"+'請求書入力 (記入例)'!$BK$10","v":"00:00:00"},{"$f":"+'請求書入力 (記入例)'!$BL$10","v":"00:00:00"},null,null,{"$f":"+'請求書入力 (記入例)'!$BO$10","v":"00:00:00"},null,null,{"$f":"+'請求書入力 (記入例)'!$BR$10","v":0},null,null,null,null,{"$f":"+'請求書入力 (記入例)'!$BW$10","v":0},{"$f":"+'請求書入力 (記入例)'!$BX$10","v":0},{"$f":"+'請求書入力 (記入例)'!$BY$10","v":0},{"$f":"+'請求書入力 (記入例)'!$BZ$10","v":0},0,0]
["合計金額",null,null,null,null,null,null,null,null,null,null,null,null,1,"式",{"$f":"SUM(P21:P25)","v":53000},{"$f":"SUM(Q21:Q25)","v":53000},{"$f":"SUM(R21:R25)","v":4240},{"$f":"SUM(S21:S25)","v":60000}]
[]
[]
[null,"注文書番号",null,null,{"$f":"+'請求書入力 (記入例)'!$BN$12","v":"B27008458"},null,null,null,null,null,null,null,null,null,null,"社長承認","現場担当者","経理担当者"]
[null,"契約金額",null,null,{"$f":"+'請求書入力 (記入例)'!$BW$12","v":1080000}]
[null,"出来高（納入高）",null,null,{"$f":"+'請求書入力 (記入例)'!$BW$13","v":864000}]
[null,"既請求分",null,null,{"$f":"+'請求書入力 (記入例)'!$BW$14","v":648000}]
[null,"今回請求分",null,null,{"$f":"+'請求書入力 (記入例)'!$BW$15","v":216000}]
[null,"残　　額",null,null,{"$f":"+'請求書入力 (記入例)'!$BW$16","v":216000}]
[]
[]
["請求書　（支払伝票）"]
[]
[]
["請求先",null,"㈱占部組",null,null,null,null,null,null,null,"御中",null,"請求元","社名",null,{"$f":"+'請求書入力 (記入例)'!I82","v":0}]
[null,null,null,null,null,null,null,null,null,null,null,null,null,"業者番号",null,{"$f":"+'請求書入力 (記入例)'!$I$1","v":8088},null,null,"印"]
[null,null,null,null,null,null,null,null,null,null,null,null,null,"代表者名",null,{"$f":"+'請求書入力 (記入例)'!$I$13","v":"山本カンサイ"}]
["請求日",null,null,"平成",{"$f":"+'請求書入力 (記入例)'!$L$22","v":28},"年",{"$f":"+'請求書入力 (記入例)'!$Q$22","v":2},"月",{"$f":"+'請求書入力 (記入例)'!$V$22","v":28},"日",null,null,null,"住所",null,{"$f":"+\"〒　\"&'請求書入力 (記入例)'!$I$5&\" \"&+'請求書入力 (記入例)'!$P$5","v":"〒　110 5959"}]
["請求締日",null,null,null,{"$f":"+'請求書入力 (記入例)'!$K$19","v":28},null,"年",{"$f":"+'請求書入力 (記入例)'!$O$19","v":2},null,"月末締",null,null,null,null,null,{"$f":"+'請求書入力 (記入例)'!I79","v":0}]
[null,null,null,null,null,null,null,null,null,null,null,null,null,"電話",null,{"$f":"+'請求書入力 (記入例)'!$I$14","v":"090-9999-9999"}]
["御請求金額",null,{"$f":"+$R$26","v":4240},null,null,null,null,null,null,null,null,null,null,"ＦＡＸ",null,{"$f":"+'請求書入力 (記入例)'!$I$16","v":"050-999-5555"}]
[null,null,null,null,null,null,null,null,null,null,null,null,null,"振込先",null,{"$f":"+'請求書入力 (記入例)'!$AS$21","v":"カンサイ銀行"},{"$f":"+'請求書入力 (記入例)'!$AS$23","v":"淀橋支店"},{"$f":"+'請求書入力 (記入例)'!$AS$25","v":"普通"}]
[null,null,null,null,null,null,null,null,null,null,null,null,null,null,null,{"$f":"+'請求書入力 (記入例)'!$AS$27","v":"0010100"},{"$f":"+'請求書入力 (記入例)'!$AS$29","v":"カ.ヤマモトケンセツ"}]
[]
[null,"工事番号",null,null,{"$f":"+'請求書入力 (記入例)'!$W$1","v":2700108},null,null,null,null,null,null,null,null,null,null,"担当者",{"$f":"+'請求書入力 (記入例)'!$AB$5","v":"山本"}]
[null,"工事名",null,null,{"$f":"+'請求書入力 (記入例)'!AH$1","v":"水素ステーション"}]
[null,"大区分",null,{"$f":"+'請求書入力 (記入例)'!$BL$1","v":"土木（1）"}]
[]
[null,"支払い条件",null,null,null,"支払い金額",null,null,null,null,null,null,null,"支払日",null,null,"伝票番号"]
[null,"翌末払い",null,null,null,null,null,null,null,null,null,null,null,"　　年　　　月　　　日"]
[null,"翌々10日払い",null,null,null,null,null,null,null,null,null,null,null,"　　年　　　月　　　日"]
[null,"ＯＰ締め払い",null,null,null,null,null,null,null,null,null,null,null,"　　年　　　月　　　日"]
[null,"その他払い",null,null,null,null,null,null,null,null,null,null,null,"　　年　　　月　　　日"]
[null,"立替相殺"]
[null,"業者",null,null,null,null,null,null,null,null,null,null,null,"金額"]
[null,"適用"]
[]
[]
[]
[]
[]
[]
[]
[null,"担当者印",null,"社長印",null,null,"経理課長印"]